fUST/lending_fUST_20250827
["ID","MTS","AMOUNT","RATE_DAILY","PERIOD"]
[381563836,1756284655913,-480.0,0.00024537,2]
[381563838,1756284655923,-903.5,0.00024537,2]
[381563840,1756284655932,-480.0,0.00024537,2]
[381563842,1756284655941,-480.0,0.00024537,2]
[381563844,1756284655950,-860.61,0.00024537,2]
[381563846,1756284655959,-480.0,0.00024537,2]
[381563848,1756284655968,-659.15,0.00024537,2]
[381563850,1756284655978,-878.52,0.00024537,2]
[381563852,1756284655987,-480.0,0.00024537,2]
[381563854,1756284655997,-677.9,0.00024537,2]
[381563856,1756284656007,-529.55,0.00024537,2]
[381563857,1756284656016,-629.34,0.00024537,2]
[381563859,1756284656026,-480.0,0.00024537,2]
[381563861,1756284656035,-480.0,0.00024537,2]
[381563863,1756284656045,-480.0,0.00024537,2]
[381563865,1756284656055,-1126.22,0.00024537,2]
[381563866,1756284656065,-480.0,0.00024537,2]
[381563867,1756284656074,-480.0,0.00024537,2]
[381563868,1756284656084,-480.0,0.00024537,2]
[381563869,1756284656093,-480.0,0.00024537,2]
[381563870,1756284656103,-731.53,0.00024537,2]
[381563871,1756284656116,-480.0,0.00024537,2]
[381563872,1756284656127,-480.0,0.00024537,2]
[381563873,1756284656136,-641.75,0.00024537,2]
[381563874,1756284656153,-480.0,0.00024537,2]
[381563875,1756284656163,-889.19,0.00024537,2]
[381563876,1756284656173,-1008.06,0.00024537,2]
[381563877,1756284656182,-480.0,0.00024537,2]
[381563878,1756284656192,-480.0,0.00024537,2]
[381563879,1756284656201,-227.8241137,0.00024537,2]
[381563880,1756284656211,-480.0,0.00024537,2]
[381563881,1756284656220,-480.0,0.00024537,2]
[381563883,1756284656230,-480.0,0.00024537,2]
[381563885,1756284656239,-480.0,0.00024537,2]
[381563887,1756284656248,-480.0,0.00024537,2]
[381563889,1756284656258,-480.0,0.00024537,2]
[381563891,1756284656267,-480.0,0.00024537,2]
[381563893,1756284656276,-673.71,0.00024537,2]
[381563895,1756284656285,-151.0,0.00024537,7]
[381563897,1756284656294,-151.0,0.00024537,7]
[381563899,1756284656303,-151.0,0.00024537,7]
[381563901,1756284656313,-151.0,0.00024537,7]
[381563903,1756284656322,-480.0,0.00024537,2]
[381563905,1756284656331,-896.4,0.00024537,2]
[381563907,1756284656342,-891.75,0.00024537,2]
[381563909,1756284656352,-202.363698,0.00024537,7]
[381563911,1756284656362,-202.363698,0.00024537,7]
[381563913,1756284656371,-202.363698,0.00024537,7]
[381563915,1756284656380,-202.363698,0.00024537,7]
[381563917,1756284656389,-480.0,0.00024537,2]
[381563919,1756284656398,-15977.42,0.00024537,2]
[381563921,1756284656407,-480.0,0.00024537,2]
[381563922,1756284656417,-1121.12,0.00024537,2]
[381563923,1756284656426,-480.0,0.00024537,2]
[381563924,1756284656435,-151.0,0.00024537,7]
[381563925,1756284656444,-151.0,0.00024537,7]
[381563926,1756284656453,-151.0,0.00024537,7]
[381563927,1756284656462,-480.0,0.00024537,2]
[381563928,1756284656471,-480.0,0.00024537,2]
[381563929,1756284656481,-480.0,0.00024537,2]
[381563930,1756284656489,-480.0,0.00024537,2]
[381563931,1756284656499,-795.24,0.00024537,2]
[381563932,1756284656508,-1088.52,0.00024537,2]
[381563933,1756284656517,-866.69,0.00024537,2]
[381563934,1756284656526,-480.0,0.00024537,2]
[381563935,1756284656535,-480.0,0.00024537,2]
[381563936,1756284656545,-1019.34,0.00024537,2]
[381563937,1756284656556,-3283.8,0.00024537,2]
[381563938,1756284656565,-619.47,0.00024537,2]
[381563939,1756284656574,-480.0,0.00024537,2]
[381563940,1756284656583,-534.32,0.00024537,2]
[381563941,1756284656592,-738.03,0.00024537,2]
[381563942,1756284656601,-481.99552742,0.00024537,2]
[381563943,1756284656611,-480.0,0.00024537,2]
[381563944,1756284656620,-867.16,0.00024537,2]
[381563945,1756284656629,-814.29,0.00024537,2]
[381563946,1756284656639,-480.0,0.00024537,2]
[381563947,1756284656648,-976.12,0.00024537,2]
[381563948,1756284656657,-480.0,0.00024537,2]
[381563949,1756284656666,-480.0,0.00024537,2]
[381563950,1756284656675,-480.0,0.00024537,2]
[381563951,1756284656684,-1272.09,0.00024537,2]
[381563952,1756284656694,-480.0,0.00024537,2]
[381563953,1756284656703,-1504.54,0.00024537,2]
[381563954,1756284656712,-480.0,0.00024547,2]
[381563955,1756284656721,-806.88,0.00024547,2]
[381563956,1756284656731,-10444.4,0.00024559,2]
[381563957,1756284656741,-480.0,0.00024559,2]
[381563958,1756284656752,-5325.71,0.00024559,2]
[381563959,1756284656761,-969.69,0.00024559,2]
[381563960,1756284656771,-9340.02,0.00024559,2]
[381563961,1756284656780,-480.0,0.00024559,2]
[381563962,1756284656790,-1022.69,0.00024559,2]
[381563963,1756284656799,-2576.94,0.00024559,2]
[381563964,1756284656809,-407.45110682,0.00024572,2]
[381563966,1756284656818,-796.98,0.00024572,2]
[381563968,1756284656828,-1062.52,0.00024572,2]
[381563970,1756284656838,-854.35,0.00024572,2]
[381563972,1756284656847,-603.93,0.00024572,2]
[381563974,1756284656857,-480.0,0.00024572,2]
[381563976,1756284656867,-480.0,0.00024572,2]
[381563978,1756284656876,-480.0,0.00024572,2]
[381563980,1756284656886,-480.0,0.00024572,2]
[381563982,1756284656895,-480.0,0.00024572,2]
[381563984,1756284656905,-480.0,0.00024572,2]
[381563986,1756284656914,-764.66,0.00024572,2]
[381563988,1756284656923,-480.0,0.00024572,2]
[381563990,1756284656932,-480.0,0.00024572,2]
[381563992,1756284656942,-480.0,0.00024572,2]
[381563994,1756284656951,-906.12,0.00024572,2]
[381563996,1756284656960,-789.3,0.00024572,2]
[381563998,1756284656969,-480.0,0.00024572,2]
[381564000,1756284656978,-788.45,0.00024572,2]
[381564002,1756284656987,-480.0,0.00024572,2]
[381564004,1756284656997,-726.86,0.00024572,2]
[381564006,1756284657007,-480.0,0.00024572,2]
[381564008,1756284657017,-480.0,0.00024572,2]
[381564010,1756284657026,-840.63,0.00024572,2]
[381564012,1756284657035,-1651.47,0.00024572,2]
[381564014,1756284657044,-480.0,0.00024572,2]
[381564016,1756284657054,-480.0,0.00024572,2]
[381564018,1756284657063,-1079.87,0.00024572,2]
[381564020,1756284657072,-480.0,0.00024572,2]
[381564022,1756284657081,-813.61,0.00024572,2]
[381564024,1756284657093,-480.0,0.00024572,2]
[381564026,1756284657102,-480.0,0.00024572,2]
[381564028,1756284657111,-480.0,0.00024572,2]
[381564030,1756284657120,-1171.83,0.00024572,2]
[381564032,1756284657130,-1041.06,0.00024572,2]
[381564034,1756284657139,-569.47460839,0.00024572,2]
[381564036,1756284657148,-480.0,0.00024572,2]
[381564038,1756284657157,-480.0,0.00024572,2]
[381564040,1756284657167,-480.0,0.00024572,2]
[381564042,1756284657176,-1195.32,0.00024572,2]
[381564044,1756284657185,-480.0,0.00024572,2]
[381564046,1756284657194,-480.0,0.00024572,2]
[381564048,1756284657204,-513.87407488,0.00024572,2]
[381564050,1756284657213,-1409.47,0.00024572,2]
[381564052,1756284657222,-480.0,0.00024572,2]
[381564054,1756284657231,-480.0,0.00024572,2]
[381564071,1756284657382,-542.71514986,0.00024572,2]
[381564073,1756284657392,-480.0,0.00024572,2]
[381564075,1756284657401,-480.0,0.00024572,2]
[381564077,1756284657411,-518.54,0.00024572,2]
[381564079,1756284657420,-480.0,0.00024572,2]
[381564081,1756284657430,-480.0,0.00024572,2]
[381564084,1756284657439,-480.0,0.00024572,2]
[381564086,1756284657448,-1114.07,0.00024572,2]
[381564087,1756284657458,-480.0,0.00024572,2]
[381564089,1756284657469,-480.0,0.00024572,2]
[381564091,1756284657479,-480.0,0.00024572,2]
[381564093,1756284657488,-711.25,0.00024572,2]
[381564095,1756284657498,-480.0,0.00024572,2]
[381564097,1756284657508,-639.8,0.00024572,2]
[381564099,1756284657518,-480.0,0.00024572,2]
[381564101,1756284657527,-480.70040711,0.00024572,2]
[381564103,1756284657536,-480.0,0.00024572,2]
[381564105,1756284657545,-480.0,0.00024572,2]
[381564107,1756284657555,-507.58,0.00024572,2]
[381564109,1756284657565,-664.69,0.00024572,2]
[381564111,1756284657575,-480.0,0.00024572,2]
[381564113,1756284657584,-480.0,0.00024572,2]
[381564115,1756284657594,-1759.82,0.00024572,2]
[381564117,1756284657603,-480.0,0.00024572,2]
[381564119,1756284657613,-480.0,0.00024572,2]
[381564121,1756284657623,-480.0,0.00024572,2]
[381564124,1756284657632,-480.0,0.00024572,2]
[381564125,1756284657642,-1015.11,0.00024572,2]
[381564127,1756284657651,-1136.43,0.00024572,2]
[381564129,1756284657661,-480.0,0.00024572,2]
[381564132,1756284657671,-480.0,0.00024572,2]
[381564134,1756284657681,-480.0,0.00024572,2]
[381564136,1756284657691,-480.0,0.00024572,2]
[381564138,1756284657700,-480.0,0.00024572,2]
[381564139,1756284657710,-480.0,0.00024572,2]
[381564141,1756284657719,-481.78692202,0.00024572,2]
[381564143,1756284657729,-480.0,0.00024572,2]
[381564145,1756284657738,-480.0,0.00024572,2]
[381564147,1756284657748,-480.0,0.00024572,2]
[381564149,1756284657757,-1391.33,0.00024572,2]
[381564151,1756284657766,-480.0,0.00024572,2]
[381564153,1756284657775,-507.76,0.00024572,2]
[381564155,1756284657785,-480.0,0.00024572,2]
[381564157,1756284657794,-1112.87,0.00024572,2]
[381564159,1756284657805,-660.74,0.00024572,2]
[381564161,1756284657820,-480.0,0.00024572,2]
[381564163,1756284657830,-722.43,0.00024572,2]
[381564165,1756284657839,-442.9555528,0.00024572,2]
[381564167,1756284657848,-480.0,0.00024572,2]
[381564169,1756284657857,-482.26589214,0.00024572,2]
[381564171,1756284657867,-480.0,0.00024572,2]
[381564173,1756284657875,-480.0,0.00024572,2]
[381564175,1756284657885,-903.67,0.00024572,2]
[381564177,1756284657894,-480.0,0.00024572,2]
[381564179,1756284657903,-500.0,0.00024573,2]
[381564181,1756284657913,-500.0,0.00024573,2]
[381564183,1756284657923,-500.0,0.00024573,2]
[381564185,1756284657932,-500.0,0.00024573,2]
[381564187,1756284657942,-501.90256974,0.00024573,2]
[381564189,1756284657952,-502.70267797,0.00024573,2]
[381564191,1756284657961,-500.0,0.00024573,2]
[381564193,1756284657971,-500.0,0.00024573,2]
[381564195,1756284657982,-150.92245155,0.00024573,2]
[381564197,1756284657992,-500.0,0.00024573,2]
[381564199,1756284658001,-500.0,0.00024573,2]
[381564201,1756284658011,-529.88765004,0.00024573,2]
[381564203,1756284658021,-611.79117715,0.00024573,2]
[381564205,1756284658030,-499.45917636,0.00024573,2]
[381564207,1756284658040,-501.54918979,0.00024573,2]
[381564209,1756284658049,-500.0,0.00024573,2]
[381564211,1756284658059,-500.0,0.00024573,2]
[381564213,1756284658068,-500.0,0.00024573,2]
[381564215,1756284658078,-500.0,0.00024573,2]
[381564217,1756284658087,-500.0,0.00024573,2]
[381564219,1756284658097,-500.0,0.00024573,2]
[381564221,1756284658119,-500.0,0.00024573,2]
[381564223,1756284658139,-500.0,0.00024573,2]
[381564225,1756284658156,-500.0,0.00024573,2]
[381564227,1756284658165,-500.0,0.00024573,2]
[381564229,1756284658175,-500.57562259,0.00024573,2]
[381564231,1756284658184,-150.0,0.00024573,2]
[381564233,1756284658194,-500.0,0.00024573,2]
[381564236,1756284658203,-197.38868026,0.00024573,2]
[381564237,1756284658212,-500.0,0.00024573,2]
[381564239,1756284658222,-500.0,0.00024573,2]
[381564241,1756284658231,-500.0,0.00024573,2]
[381564243,1756284658242,-500.0,0.00024573,2]
[381564245,1756284658251,-500.0,0.00024573,2]
[381564247,1756284658261,-500.0,0.00024573,2]
[381564249,1756284658271,-500.0,0.00024573,2]
[381564251,1756284658280,-500.0,0.00024573,2]
[381564253,1756284658290,-500.0,0.00024573,2]
[381564255,1756284658299,-500.0,0.00024573,2]
[381564257,1756284658309,-649.3956744,0.00024573,2]
[381564259,1756284658318,-501.05662718,0.00024573,2]
[381564261,1756284658327,-123921.08639764,0.00024598,2]
[381564263,1756284658337,-151.0,0.00024598,7]
[381564265,1756284658347,-151.0,0.00024598,7]
[381564267,1756284658356,-151.0,0.00024598,7]
[381564269,1756284658366,-151.0,0.00024598,7]
[381564271,1756284658375,-151.0,0.00024598,7]
[381564273,1756284658385,-151.0,0.00024598,7]
[381564275,1756284658394,-151.0,0.00024598,7]
[381564277,1756284658404,-245.147055,0.00024598,7]
[381564279,1756284658413,-245.147055,0.00024598,7]
[381564281,1756284658423,-245.147055,0.00024598,7]
[381564283,1756284658433,-245.147055,0.00024598,7]
[381564285,1756284658444,-180.577966,0.00024598,7]
[381564287,1756284658454,-180.577966,0.00024598,7]
[381564289,1756284658466,-180.577966,0.00024598,7]
[381564291,1756284658477,-180.577966,0.00024598,7]
[381564293,1756284658487,-151.0,0.00024598,7]
[381564295,1756284658497,-151.0,0.00024598,7]
[381564297,1756284658508,-151.0,0.00024598,7]
[381564299,1756284658518,-151.0,0.00024598,7]
[381564301,1756284658527,-151.0,0.00024598,7]
[381564303,1756284658536,-151.0,0.00024598,7]
[381564305,1756284658545,-151.0,0.00024598,7]
[381564307,1756284658554,-151.0,0.00024598,7]
[381564309,1756284658564,-202.363698,0.00024598,7]
[381564311,1756284658573,-202.363698,0.00024598,7]
[381564313,1756284658583,-202.363698,0.00024598,7]
[381564315,1756284658592,-202.363698,0.00024598,7]
[381564317,1756284658601,-151.0,0.00024598,7]
[381564319,1756284658611,-151.0,0.00024598,7]
[381564321,1756284658620,-151.0,0.00024598,7]
[381564323,1756284658630,-151.0,0.000246,8]
[381564325,1756284658639,-151.0,0.000246,8]
[381564327,1756284658649,-160.0,0.000246,2]
[381564329,1756284658658,-1084.0,0.0002464,2]
[381564331,1756284658667,-1779.7,0.00024645,2]
[381564333,1756284658676,-27386.606955,0.0002465,2]
[381564335,1756284658686,-929.23,0.0002467,2]
[381564337,1756284658695,-508.29447791,0.0002467,2]
[381564339,1756284658704,-480.0,0.0002467,2]
[381564341,1756284658715,-683.86,0.0002467,2]
[381564343,1756284658736,-1183.92,0.0002467,2]
[381564345,1756284658747,-480.0,0.00024671,2]
[381564347,1756284658758,-965.16903712,0.00024672,2]
[381564349,1756284658767,-616.91695779,0.00024672,2]
[381564351,1756284658777,-241.53379307,0.00024673,2]
[381564354,1756284658787,-747.40994237,0.00024673,2]
[381564356,1756284658797,-545.35684391,0.00024675,2]
[381564358,1756284658807,-877.0,0.00024695,2]
[381564360,1756284658816,-151.0,0.00024695,2]
[381564362,1756284658826,-500.0,0.00024695,2]
[381564364,1756284658835,-500.0,0.00024695,2]
[381564366,1756284658845,-246.47729355,0.00024695,2]
[381564368,1756284658854,-151.0,0.00024695,2]
[381564370,1756284658863,-183.9151083,0.00024695,2]
[381564371,1756284658872,-151.0,0.00024695,2]
[381564373,1756284658882,-500.0,0.00024695,2]
[381564376,1756284658892,-1779.7,0.00024699,2]
[381564377,1756284658902,-1779.7,0.00024699,2]
[381564379,1756284658911,-1779.7,0.00024699,2]
[381564381,1756284658921,-1779.7,0.00024699,2]
[381564383,1756284658930,-1779.7,0.00024699,2]
[381564385,1756284658939,-1779.7,0.00024699,2]
[381564387,1756284658949,-1779.7,0.00024699,2]
[381564389,1756284658958,-1779.7,0.00024699,2]
[381564391,1756284658968,-1779.7,0.00024699,2]
[381564394,1756284658978,-1779.7,0.00024699,2]
[381564396,1756284658988,-1779.7,0.00024699,2]
[381564398,1756284658997,-1779.7,0.00024699,2]
[381564399,1756284659006,-1779.7,0.00024699,2]
[381564401,1756284659015,-1779.7,0.00024699,2]
[381564403,1756284659025,-1779.7,0.00024699,2]
[381564405,1756284659034,-1779.7,0.00024699,2]
[381564407,1756284659043,-1779.7,0.00024699,2]
[381564409,1756284659052,-1779.7,0.00024699,2]
[381564411,1756284659062,-1779.7,0.00024699,2]
[381564413,1756284659071,-1779.80677711,0.00024699,2]
[381564415,1756284659081,-151.0,0.000247,7]
[381564417,1756284659090,-151.0,0.000247,7]
[381564419,1756284659099,-151.0,0.000247,7]
[381564421,1756284659108,-151.0,0.000247,7]
[381564423,1756284659117,-151.0,0.000247,7]
[381564425,1756284659126,-151.0,0.000247,7]
[381564427,1756284659135,-151.0,0.000247,7]
[381564429,1756284659145,-151.0,0.000247,7]
[381564431,1756284659154,-151.0,0.000247,9]
[381564432,1756284659163,-151.0,0.000247,10]
[381564433,1756284659177,-326.0,0.000247,3]
[381564434,1756284659186,-326.0,0.000247,3]
[381564435,1756284659195,-326.0,0.000247,3]
[381564436,1756284659205,-217.23771399,0.000247,7]
[381564437,1756284659214,-621.79866336,0.000247,2]
[381564438,1756284659223,-3383.34728176,0.00024705,2]
[381564439,1756284659232,-3322.3,0.00024721,2]
[381564440,1756284659241,-480.0,0.00024721,2]
[381564442,1756284659250,-480.0,0.00024721,2]
[381564444,1756284659260,-1732.12,0.00024721,2]
[381564446,1756284659269,-1009.58,0.00024721,2]
[381564448,1756284659278,-151.0,0.00024721,7]
[381564450,1756284659287,-151.0,0.00024721,7]
[381564452,1756284659296,-480.0,0.00024721,2]
[381564454,1756284659305,-739.39,0.00024721,2]
[381564456,1756284659314,-5847.87,0.00024721,2]
[381564458,1756284659323,-2321.17,0.00024721,2]
[381564460,1756284659332,-480.0,0.00024721,2]
[381564462,1756284659341,-175.92970017,0.00024721,2]
[381564464,1756284659350,-2303.44,0.00024721,2]
[381564466,1756284659359,-2700.34,0.00024721,2]
[381564468,1756284659369,-4014.6,0.00024721,2]
[381564470,1756284659377,-4501.99,0.00024721,2]
[381564472,1756284659386,-1067.62,0.00024721,2]
[381564474,1756284659395,-933.51,0.00024721,2]
[381564476,1756284659404,-480.0,0.00024721,2]
[381564478,1756284659413,-5472.01,0.00024721,2]
[381564480,1756284659422,-562.37,0.00024721,2]
[381564482,1756284659431,-1817.38,0.00024721,2]
[381564484,1756284659441,-721.22,0.00024721,2]
[381564486,1756284659450,-531.27,0.00024721,2]
[381564488,1756284659461,-480.0,0.00024721,2]
[381564490,1756284659470,-480.0,0.00024721,2]
[381564492,1756284659479,-791.08,0.00024721,2]
[381564494,1756284659489,-1084.0,0.00024726,2]
[381564496,1756284659498,-4195.6826826,0.00024774,2]
[381564498,1756284659507,-500.0,0.00024789,2]
[381564500,1756284659516,-853.45,0.00024792,2]
[381564502,1756284659525,-480.0,0.00024793,2]
[381564504,1756284659535,-800.04,0.00024793,2]
[381564521,1756284659667,-1053.14,0.00024793,2]
[381564524,1756284659688,-1238.2,0.00024793,2]
[381564526,1756284659706,-480.0,0.00024793,2]
[381564528,1756284659715,-875.84,0.00024793,2]
[381564530,1756284659725,-741.23,0.00024793,2]
[381564532,1756284659734,-562.61,0.00024793,2]
[381564534,1756284659743,-518.95,0.00024793,2]
[381564536,1756284659752,-480.0,0.00024793,2]
[381564538,1756284659762,-480.0,0.00024793,2]
[381564540,1756284659771,-843.28,0.00024793,2]
[381564542,1756284659780,-480.0,0.00024793,2]
[381564544,1756284659790,-1084.0,0.00024794,2]
[381564546,1756284659800,-500.0,0.00024799,2]
[381564548,1756284659809,-500.0,0.00024799,2]
[381564550,1756284659818,-500.0,0.00024799,2]
[381564552,1756284659828,-500.0,0.00024799,2]
[381564554,1756284659837,-500.0,0.00024799,2]
[381564556,1756284659846,-500.0,0.00024799,2]
[381564558,1756284659856,-500.0,0.00024799,2]
[381564560,1756284659866,-500.0,0.00024799,2]
[381564562,1756284659875,-459.61273669,0.00024799,2]
[381564564,1756284659885,-151.0,0.000248,7]
[381564566,1756284659894,-151.0,0.000248,9]
[381564568,1756284659904,-480.0,0.00024808,2]
[381564570,1756284659914,-480.0,0.00024808,2]
[381564572,1756284659923,-480.0,0.00024808,2]
[381564574,1756284659933,-480.0,0.00024808,2]
[381564576,1756284659942,-1460.05,0.00024809,2]
[381564578,1756284659951,-480.0,0.00024809,2]
[381564580,1756284659960,-480.0,0.00024809,2]
[381564582,1756284659969,-480.0,0.00024809,2]
[381564584,1756284659979,-480.0,0.00024809,2]
[381564587,1756284659990,-1837.2,0.00024809,2]
[381564589,1756284659999,-605.14,0.00024809,2]
[381564591,1756284660009,-440.66007537,0.00024809,2]
[381564593,1756284660019,-493.22,0.00024809,2]
[381564595,1756284660028,-480.0,0.00024809,2]
[381564597,1756284660039,-756.67,0.00024809,2]
[381564599,1756284660049,-480.0,0.00024809,2]
[381564601,1756284660058,-484.48,0.00024809,2]
[381564603,1756284660068,-480.0,0.00024809,2]
[381564605,1756284660078,-244.81498467,0.00024809,2]
[381564607,1756284660087,-480.0,0.00024809,2]
[381564609,1756284660097,-480.0,0.00024809,2]
[381564611,1756284660107,-815.31,0.00024809,2]
[381564613,1756284660120,-809.93,0.00024809,2]
[381564616,1756284660130,-507.35,0.00024809,2]
[381564618,1756284660139,-2767.19,0.00024809,2]
[381564620,1756284660150,-1042.63,0.00024809,2]
[381564622,1756284660160,-480.0,0.00024809,2]
[381564624,1756284660170,-645.51,0.00024809,2]
[381564626,1756284660180,-939.18,0.00024809,2]
[381564628,1756284660191,-611.26,0.00024809,2]
[381564630,1756284660202,-809.41,0.00024809,2]
[381564632,1756284660212,-658.49,0.00024809,2]
[381564634,1756284660222,-6603.54,0.00024809,2]
[381564636,1756284660232,-480.0,0.00024809,2]
[381564638,1756284660241,-6244.01,0.00024809,2]
[381564640,1756284660251,-1384.25,0.00024809,2]
[381564642,1756284660261,-731.94,0.00024809,2]
[381564644,1756284660271,-1802.88,0.00024809,2]
[381564646,1756284660280,-433.38001414,0.00024809,2]
[381564648,1756284660289,-2127.62,0.00024809,2]
[381564650,1756284660300,-933.62,0.00024809,2]
[381564652,1756284660310,-480.0,0.00024809,2]
[381564654,1756284660320,-639.21,0.00024809,2]
[381564656,1756284660330,-3109.7,0.00024809,2]
[381564659,1756284660340,-480.0,0.00024809,2]
[381564661,1756284660350,-4787.12,0.00024809,2]
[381564663,1756284660360,-1056.71,0.00024809,2]
[381564665,1756284660370,-480.0,0.00024809,2]
[381564667,1756284660380,-401.97803155,0.00024809,2]
[381564669,1756284660389,-2741.24,0.00024809,2]
[381564671,1756284660400,-480.0,0.00024809,2]
[381564673,1756284660409,-1326.73,0.00024809,2]
[381564675,1756284660419,-480.0,0.00024809,2]
[381564677,1756284660428,-480.0,0.00024809,2]
[381564679,1756284660437,-480.0,0.0002481,2]
[381564681,1756284660447,-480.0,0.0002481,2]
[381564683,1756284660457,-831.06,0.0002481,2]
[381564685,1756284660466,-480.0,0.0002481,2]
[381564687,1756284660476,-480.0,0.0002481,2]
[381564689,1756284660485,-900.75,0.0002481,2]
[381564691,1756284660495,-480.0,0.0002481,2]
[381564693,1756284660505,-480.0,0.0002481,2]
[381564695,1756284660515,-797.64,0.0002481,2]
[381564697,1756284660524,-682.46,0.0002481,2]
[381564699,1756284660533,-456.63505691,0.0002481,2]
[381564701,1756284660542,-764.44,0.0002481,2]
[381564703,1756284660552,-500.0,0.0002481,2]
[381564705,1756284660562,-1025.99,0.0002481,2]
[381564707,1756284660571,-1041.55,0.0002481,2]
[381564709,1756284660580,-704.33,0.0002481,2]
[381564711,1756284660590,-795.25,0.0002481,2]
[381564713,1756284660599,-480.0,0.0002481,2]
[381564715,1756284660609,-568.55,0.0002481,2]
[381564718,1756284660618,-772.12,0.0002481,2]
[381564720,1756284660628,-1819.08,0.0002481,2]
[381564722,1756284660637,-647.0,0.0002481,2]
[381564724,1756284660646,-1723.3,0.0002481,2]
[381564726,1756284660656,-2074.8,0.0002481,2]
[381564728,1756284660665,-621.67,0.0002481,2]
[381564730,1756284660675,-902.12,0.0002481,2]
[381564732,1756284660684,-1017.58,0.0002481,2]
[381564734,1756284660693,-1052.17,0.0002481,2]
[381564736,1756284660703,-1154.13,0.0002481,2]
[381564738,1756284660712,-374.29701476,0.0002481,2]
[381564740,1756284660722,-480.0,0.0002481,2]
[381564742,1756284660731,-480.0,0.0002481,2]
[381564744,1756284660741,-480.0,0.0002481,2]
[381564746,1756284660752,-1174.15,0.0002481,2]
[381564748,1756284660763,-480.0,0.0002481,2]
[381564750,1756284660773,-1636.2,0.0002481,2]
[381564752,1756284660782,-715.18,0.0002481,2]
[381564754,1756284660792,-480.0,0.0002481,2]
[381564756,1756284660801,-540.26,0.0002481,2]
[381564758,1756284660812,-480.0,0.0002481,2]
[381564760,1756284660822,-3234.33,0.0002481,2]
[381564762,1756284660831,-781.32,0.0002481,2]
[381564764,1756284660841,-480.0,0.0002481,2]
[381564767,1756284660851,-480.0,0.0002481,2]
[381564769,1756284660860,-525.76,0.0002481,2]
[381564771,1756284660869,-480.0,0.0002481,2]
[381564773,1756284660879,-484.88,0.0002481,2]
[381564775,1756284660891,-2772.94,0.0002481,2]
[381564777,1756284660901,-2493.98,0.0002481,2]
[381564779,1756284660911,-480.0,0.0002481,2]
[381564781,1756284660921,-1030.73,0.0002481,2]
[381564783,1756284660930,-3554.1,0.0002481,2]
[381564785,1756284660940,-1519.01,0.0002481,2]
[381564787,1756284660950,-598.74,0.0002481,2]
[381564789,1756284660959,-480.0,0.0002481,2]
[381564791,1756284660968,-845.79,0.0002481,2]
[381564793,1756284660978,-480.0,0.0002481,2]
[381564795,1756284660988,-480.0,0.0002481,2]
[381564797,1756284660997,-699.05,0.0002481,2]
[381564799,1756284661007,-509.04,0.0002481,2]
[381564801,1756284661017,-992.31,0.0002481,2]